bitfinex-derivatives/quotes_BTCF0:USTF0_20250822
["timestamp","ask_amount","ask_price","bid_price","bid_amount"]
[1755875518945,0.0002,116640.0,116630.0,2.69842696]
[1755875519451,0.0002,116640.0,116630.0,2.17759866]
[1755875520358,0.0002,116640.0,116630.0,2.69842696]
[1755875520650,0.4336,116680.0,116660.0,0.5663505]
[1755875520849,0.42545538,116690.0,116680.0,0.48063]
[1755875521549,0.01944538,116690.0,116680.0,0.5663358]
[1755875521748,0.01944538,116690.0,116680.0,1.6979641]
[1755875521947,0.01944538,116690.0,116680.0,1.1771358]
[1755875522545,0.02344538,116690.0,116680.0,1.1771358]
[1755875523145,0.02344538,116690.0,116680.0,1.10517184]
[1755875523343,0.02344538,116690.0,116680.0,1.19087774]
[1755875524056,0.02344538,116690.0,116680.0,1.10517184]
[1755875524249,0.02364538,116690.0,116680.0,1.10517184]
[1755875524451,0.18667538,116690.0,116680.0,1.10517184]
[1755875524750,0.50245538,116690.0,116680.0,2.03305184]
[1755875524954,0.02364538,116690.0,116680.0,2.11875774]
[1755875525350,1.27328368,116690.0,116680.0,1.78305184]
[1755875525544,1.27328368,116690.0,116680.0,1.78297184]
[1755875525545,0.75245538,116690.0,116680.0,1.78297184]
[1755875525742,0.75245538,116690.0,116680.0,1.78293184]
[1755875525743,0.67965538,116690.0,116680.0,1.78293184]
[1755875526047,0.38225538,116690.0,116680.0,1.78293184]
[1755875526242,0.13225538,116690.0,116680.0,1.86863764]
[1755875526447,0.02364538,116690.0,116680.0,1.86863764]
[1755875526747,0.0042,116690.0,116680.0,2.63946594]
[1755875527146,0.00044874,116710.0,116680.0,2.63946594]
[1755875527352,0.47881,116720.0,116710.0,0.48063]
[1755875527554,0.47881,116720.0,116710.0,0.5663139]
[1755875527853,0.47881,116730.0,116720.0,0.48063]
[1755875528248,0.47881,116730.0,116720.0,1.40799]
[1755875528650,0.47881,116730.0,116720.0,1.4936659]
[1755875528844,1.30739978,116750.0,116720.0,1.4936659]
[1755875528845,2.19842808,116750.0,116720.0,1.4936659]
[1755875529149,1.0852996,116740.0,116710.0,1.6623]
[1755875529354,1.0852996,116740.0,116720.0,0.48063]
[1755875529355,0.47881,116730.0,116720.0,0.48063]
[1755875529552,0.5208283,116740.0,116720.0,0.566306]
[1755875529750,0.2919792,116740.0,116730.0,0.48063]
[1755875529951,0.4991492,116740.0,116730.0,0.31325]
[1755875530147,0.4991492,116740.0,116730.0,0.13346]
[1755875530347,1.1056387,116740.0,116730.0,0.0141098]
[1755875530653,0.0856684,116730.0,116720.0,0.13346]
[1755875530852,0.10881,116730.0,116710.0,1.5407831]
[1755875531057,0.47881,116720.0,116710.0,1.66202]
[1755875531359,0.47901,116720.0,116710.0,1.67607947]
[1755875531564,0.9998383,116720.0,116710.0,0.50831947]
[1755875531854,1.6963141,116720.0,116710.0,0.06692844]
[1755875532052,0.5644932,116710.0,116700.0,0.3608]
[1755875532257,0.9998383,116710.0,116700.0,0.3608]
[1755875532455,0.0002,116710.0,116700.0,0.9271205]
[1755875532761,0.0002,116710.0,116700.0,1.8095488]
[1755875533059,0.0002,116710.0,116700.0,1.8087488]
[1755875533263,0.0002,116710.0,116700.0,1.30209634]
[1755875533561,0.0002,116710.0,116700.0,1.82372464]
[1755875533855,0.0002,116710.0,116700.0,1.46640584]
[1755875534045,0.0002,116710.0,116700.0,2.47833724]
[1755875534658,0.0042,116710.0,116700.0,2.39264584]
[1755875534958,0.4195,116710.0,116700.0,2.21197223]
[1755875535258,0.0042,116710.0,116700.0,2.54766363]
[1755875535448,0.0042,116710.0,116700.0,3.06849193]
[1755875535654,0.0042,116710.0,116700.0,3.06929193]
[1755875535855,0.001,116730.0,116720.0,0.47587]
[1755875536155,0.001,116730.0,116720.0,1.40179]
[1755875536356,0.28193,116730.0,116720.0,1.40179]
[1755875536556,1.0099283,116730.0,116720.0,1.40179]
[1755875537264,0.006,116730.0,116720.0,1.40179]
[1755875537562,0.006,116730.0,116720.0,1.487466]
[1755875537757,0.006,116730.0,116720.0,1.40179]
[1755875538162,0.006,116730.0,116720.0,1.487466]
[1755875538365,0.006,116730.0,116720.0,1.40179]
[1755875538564,0.006,116730.0,116720.0,1.487466]
[1755875539056,0.006,116730.0,116720.0,1.737466]
[1755875539258,0.0062,116730.0,116720.0,1.737466]
[1755875539464,0.0062,116730.0,116720.0,2.2582943]
[1755875540162,0.0062,116730.0,116720.0,1.65179]
[1755875540866,0.28713,116730.0,116720.0,1.65179]
[1755875541165,0.0062,116730.0,116720.0,1.7374662]
[1755875541366,0.0062,116730.0,116720.0,0.72587]
[1755875541672,0.28713,116730.0,116720.0,1.65075]
[1755875541868,0.41785,116730.0,116720.0,1.65075]
[1755875542067,1.0143183,116730.0,116720.0,1.40075]
[1755875542362,0.28713,116730.0,116720.0,1.40075]
[1755875542766,0.49349,116730.0,116720.0,1.40075]
[1755875543161,0.49349,116730.0,116720.0,0.47587]
[1755875543468,0.13692,116730.0,116720.0,0.47587]
[1755875543664,0.0062,116730.0,116720.0,0.47587]
[1755875543858,0.28713,116730.0,116720.0,0.5615472]
[1755875544059,0.0062,116730.0,116720.0,0.5615472]
[1755875544972,0.01923978,116750.0,116740.0,0.48097]
[1755875545164,0.30016978,116750.0,116740.0,1.40537]
[1755875545361,0.43088978,116750.0,116740.0,1.40537]
[1755875545562,0.01923978,116750.0,116740.0,1.40537]
[1755875546072,0.01923978,116750.0,116740.0,0.73097]
[1755875546967,0.64632808,116750.0,116740.0,0.73097]
[1755875547269,1.27735808,116750.0,116740.0,0.48097]
[1755875547971,1.27735808,116750.0,116740.0,0.13266]
[1755875548180,1.27755808,116750.0,116730.0,1.2956]
[1755875548361,0.40046978,116750.0,116730.0,1.3812699]
[1755875548562,0.01943978,116750.0,116740.0,0.5666328]
[1755875549267,0.01943978,116750.0,116740.0,0.8166328]
[1755875549667,0.01943978,116750.0,116740.0,0.48097]
[1755875549866,0.43108978,116750.0,116740.0,1.40449]
[1755875550067,0.01943978,116750.0,116740.0,1.40449]
[1755875550466,0.26943978,116750.0,116740.0,1.40449]
[1755875550767,1.07119808,116750.0,116740.0,0.32143]
[1755875550963,1.27755808,116750.0,116740.0,0.32143]
[1755875551467,1.27755808,116750.0,116740.0,0.48097]
[1755875552175,0.2502,116750.0,116740.0,2.0106608]
[1755875552468,0.2502,116750.0,116740.0,1.4898325]
[1755875553067,0.2502,116750.0,116740.0,1.8506325]
[1755875553770,0.2502,116750.0,116740.0,1.76497]
[1755875554068,0.66185,116750.0,116740.0,1.76465]
[1755875554273,0.66185,116750.0,116740.0,1.8503127]
[1755875554462,0.53113,116750.0,116740.0,1.8503127]
[1755875554664,0.2502,116750.0,116740.0,1.8503127]
[1755875555470,0.2502,116750.0,116740.0,1.76465]
[1755875555772,0.2502,116750.0,116740.0,1.76429]
[1755875555773,0.73749,116750.0,116740.0,1.76429]
[1755875556872,0.35646,116750.0,116740.0,1.76429]
[1755875557173,0.53113,116750.0,116740.0,1.76429]
[1755875557772,1.1826783,116750.0,116740.0,1.76429]
[1755875558077,0.73749,116750.0,116740.0,1.76429]
[1755875558573,0.73749,116750.0,116740.0,0.84177]
[1755875558778,0.2502,116750.0,116740.0,0.9274328]
[1755875559778,0.2502,116750.0,116740.0,0.84177]
[1755875559971,0.0002,116750.0,116740.0,1.1774332]
[1755875560167,0.0002,116750.0,116740.0,1.6982615]
[1755875560670,0.0002,116750.0,116740.0,1.6992615]
[1755875561568,0.0002,116750.0,116740.0,1.1784332]
[1755875566785,0.0002,116750.0,116740.0,1.6992615]
[1755875567081,1.01650215,116780.0,116770.0,0.48957]
[1755875567283,0.51566702,116780.0,116770.0,0.48957]
[1755875567483,1.03649532,116780.0,116770.0,0.48957]
[1755875567782,0.15169702,116780.0,116770.0,0.64250839]
[1755875568083,0.15169702,116780.0,116770.0,0.55686809]
[1755875568084,0.83013532,116780.0,116770.0,0.55686809]
[1755875568285,0.30930702,116780.0,116770.0,0.55686809]
[1755875568484,1.02499532,116780.0,116770.0,0.07993699]
[1755875568685,1.00500215,116780.0,116770.0,0.19251]
[1755875568885,1.00500215,116780.0,116770.0,0.47006]
[1755875569984,1.09063585,116780.0,116770.0,0.47006]
[1755875570280,0.46501,116770.0,116760.0,0.39914]
[1755875570485,0.9860383,116770.0,116760.0,0.39914]
[1755875570995,0.9860383,116770.0,116760.0,0.48309764]
[1755875571604,1.2360383,116770.0,116760.0,0.48309764]
[1755875572097,2.2414795,116770.0,116760.0,0.06947584]
[1755875572395,1.8033683,116770.0,116750.0,0.12159]
[1755875572597,0.9858383,116760.0,116750.0,0.23507]
[1755875572784,0.11274,116760.0,116750.0,0.5557158]
[1755875572989,0.2502,116760.0,116750.0,0.5557158]
[1755875573194,0.2502,116760.0,116750.0,0.8057158]
[1755875573195,0.0002,116760.0,116750.0,0.8057158]
[1755875573782,0.4210283,116770.0,116750.0,0.8057158]
[1755875573989,0.7909783,116770.0,116760.0,0.47006]
[1755875574596,0.9099683,116770.0,116760.0,0.47006]
[1755875574895,0.9858383,116770.0,116760.0,0.47006]
[1755875575099,0.9858383,116770.0,116760.0,0.30599]
[1755875575494,0.9858383,116770.0,116760.0,0.48310281]
[1755875575690,1.2358383,116770.0,116760.0,0.08104559]
[1755875575992,0.46501,116760.0,116750.0,1.27554]
[1755875576191,0.7909783,116760.0,116750.0,1.27554]
[1755875576392,0.46501,116760.0,116750.0,0.47006]
[1755875576595,0.7909783,116760.0,116750.0,0.5557162]
[1755875576994,0.27015,116760.0,116750.0,0.47006]
[1755875577195,0.7911783,116760.0,116750.0,0.48304206]
[1755875577494,0.9860383,116760.0,116750.0,0.48304206]
[1755875577693,0.9860383,116760.0,116750.0,1.23765206]
[1755875577900,0.9860383,116760.0,116750.0,0.48304206]
[1755875578798,0.46525,116760.0,116750.0,0.48304206]
[1755875578993,0.9860783,116760.0,116750.0,0.48304206]
[1755875580693,0.9860783,116760.0,116750.0,0.55058466]
[1755875581192,1.3225272,116760.0,116750.0,0.0675426]
[1755875581503,1.3225272,116760.0,116740.0,0.3608]
[1755875581504,0.5514664,116750.0,116740.0,0.3608]
[1755875581700,2.510323,116750.0,116740.0,0.3608]
[1755875581897,0.5514737,116740.0,116720.0,0.62580461]
[1755875582106,0.9858383,116730.0,116720.0,0.37344425]
[1755875582298,1.3217095,116730.0,116720.0,0.3608]
[1755875582603,0.5506885,116720.0,116710.0,0.3608]
[1755875582793,2.0441168,116720.0,116710.0,0.05093273]
[1755875583102,2.0441168,116720.0,116690.0,0.28493305]
[1755875583103,0.19486,116700.0,116690.0,0.01751393]
[1755875583298,0.7158883,116700.0,116690.0,0.01751393]
[1755875583602,0.9658883,116700.0,116690.0,0.10515262]
[1755875583790,0.7158883,116700.0,116690.0,0.28694452]
[1755875583992,0.19506,116700.0,116690.0,0.72922512]
[1755875584202,0.0002,116700.0,116690.0,0.654316]
[1755875584504,0.7158883,116700.0,116690.0,0.5716154]
[1755875584700,0.9658883,116700.0,116690.0,0.3366254]
[1755875584902,0.9658883,116700.0,116690.0,0.1015554]
[1755875585098,0.5210283,116700.0,116690.0,0.5716154]
[1755875585401,0.0002,116700.0,116690.0,0.910316]
[1755875585597,0.0002,116700.0,116690.0,2.3491043]
[1755875586102,1.2424283,116720.0,116710.0,0.47006]
[1755875586403,1.4374883,116720.0,116710.0,0.47006]
[1755875586600,1.4372883,116720.0,116710.0,0.5383719]
[1755875586792,1.4374883,116720.0,116710.0,0.5383719]
[1755875587196,1.523167,116720.0,116710.0,0.0683119]
[1755875587499,0.19539,116710.0,116700.0,0.06980035]
[1755875587701,0.19539,116710.0,116700.0,0.45272453]
[1755875587904,0.19539,116710.0,116690.0,0.57521262]
[1755875587905,0.19539,116700.0,116690.0,0.57521262]
[1755875588106,0.19486,116710.0,116700.0,0.52364453]
[1755875588301,0.7162183,116710.0,116700.0,0.52364453]
[1755875588600,0.9662183,116710.0,116700.0,0.28865453]
[1755875588900,0.9662183,116710.0,116700.0,0.27955]
[1755875589097,0.9662183,116710.0,116700.0,0.002]
[1755875589295,0.9664183,116710.0,116700.0,0.002]
[1755875589491,0.44559,116710.0,116700.0,0.40114]
[1755875589693,0.9664183,116710.0,116700.0,0.54102234]
[1755875589894,0.7164183,116710.0,116700.0,0.59460687]
[1755875590091,0.6405483,116710.0,116700.0,0.59460687]
[1755875590601,0.7164183,116710.0,116700.0,0.59460687]
[1755875591199,0.9664183,116710.0,116700.0,0.23802687]
[1755875591398,0.9664183,116710.0,116700.0,0.12454687]
[1755875591702,0.44539,116710.0,116700.0,0.68030047]
[1755875591906,0.7158883,116710.0,116700.0,0.68030047]
[1755875592207,0.9664183,116710.0,116700.0,0.07096234]
[1755875592893,0.7164183,116710.0,116700.0,0.59460687]
[1755875593096,0.7160883,116710.0,116700.0,0.59460687]
[1755875593702,0.7164183,116710.0,116700.0,0.59460687]
[1755875594509,0.9664183,116710.0,116700.0,0.12454687]
[1755875594902,0.44559,116710.0,116700.0,0.12454687]
[1755875595101,0.9664183,116710.0,116700.0,0.12454687]
[1755875595610,0.9664183,116710.0,116700.0,0.59492687]
[1755875596108,0.9664183,116710.0,116700.0,0.23485687]
[1755875596311,1.0521047,116710.0,116700.0,0.12454687]
[1755875596506,1.0521047,116710.0,116700.0,0.07096234]
[1755875596902,0.9664183,116710.0,116700.0,0.07096234]
[1755875597498,1.0521046,116710.0,116700.0,0.07096234]
[1755875597911,1.0521047,116710.0,116700.0,0.07096234]
[1755875598410,0.44559,116710.0,116700.0,0.07096234]
[1755875598601,0.44559,116710.0,116700.0,0.34883234]
[1755875598803,0.9664183,116710.0,116700.0,0.46882234]
[1755875599112,0.7164183,116710.0,116700.0,0.59996687]
[1755875599511,0.7164183,116710.0,116700.0,0.52240687]
[1755875599807,0.7164183,116710.0,116700.0,0.59996687]
[1755875600211,0.9664183,116710.0,116700.0,0.12454687]
[1755875601000,0.9664183,116710.0,116700.0,0.52240687]
[1755875601310,1.8812583,116710.0,116700.0,0.59996687]
[1755875601904,1.6312583,116710.0,116700.0,0.59996687]
[1755875602806,1.6312583,116710.0,116700.0,0.52240687]
[1755875603011,1.6312583,116710.0,116700.0,0.59996687]
[1755875603211,0.19559,116710.0,116700.0,0.59996687]
[1755875603411,0.7164183,116710.0,116700.0,0.59996687]
[1755875603808,0.7164183,116710.0,116700.0,0.68566107]
[1755875604115,0.7162183,116710.0,116700.0,0.59996687]
[1755875604508,0.7164183,116710.0,116700.0,0.59996687]
[1755875604713,0.8021051,116710.0,116700.0,0.59996687]
[1755875605114,0.8021051,116710.0,116700.0,0.52240687]
[1755875605406,0.8021051,116710.0,116700.0,0.59996687]
[1755875605607,1.0521051,116710.0,116700.0,0.05658453]
[1755875606210,0.44559,116710.0,116700.0,0.05658453]
[1755875606519,0.9664183,116710.0,116700.0,0.45444453]
[1755875606710,1.9659451,116710.0,116700.0,0.53200453]
[1755875608616,1.7159451,116710.0,116700.0,0.53200453]
[1755875609121,1.6302583,116710.0,116700.0,0.53200453]
[1755875609609,1.6302583,116710.0,116700.0,0.5641143]
[1755875609610,0.0002,116710.0,116700.0,0.5641143]
[1755875610213,0.7257683,116710.0,116700.0,0.5641143]
[1755875610517,0.8117852,116710.0,116700.0,0.78200453]
[1755875610818,0.44657035,116730.0,116720.0,0.5610986]
[1755875611013,0.96739865,116730.0,116720.0,0.47542]
[1755875611212,1.05306985,116730.0,116720.0,0.47542]
[1755875611720,0.96739865,116730.0,116720.0,0.47542]
[1755875612018,0.78224135,116730.0,116720.0,0.2303]
[1755875612221,0.40444,116720.0,116710.0,0.47542]
[1755875612418,2.2845866,116720.0,116710.0,0.47542]
[1755875612911,0.45778,116710.0,116700.0,0.47542]
[1755875613107,0.9786083,116710.0,116700.0,0.47542]
[1755875613310,1.0642928,116710.0,116700.0,0.11031]
[1755875613614,0.5434863,116680.0,116670.0,0.32511887]
[1755875613819,1.9769546,116680.0,116670.0,0.24755887]
[1755875614025,1.4563263,116680.0,116670.0,0.12756887]
[1755875614314,1.9771546,116680.0,116670.0,0.01725887]
[1755875614509,1.6255646,116680.0,116660.0,0.36511]
[1755875614709,1.6255646,116680.0,116660.0,0.54265812]
[1755875614710,0.9786083,116670.0,116660.0,0.54265812]
[1755875614915,0.9788083,116670.0,116660.0,0.54265812]
[1755875615110,0.6272183,116670.0,116660.0,0.55468237]
[1755875615320,0.10639,116670.0,116660.0,0.55468237]
[1755875615509,0.0002,116670.0,116660.0,0.55468237]
[1755875615711,0.0002,116670.0,116660.0,0.64040357]
[1755875616219,0.0002,116670.0,116660.0,0.65140357]
[1755875616518,0.0002,116670.0,116660.0,0.56568237]
[1755875616719,0.40464,116670.0,116660.0,0.56568237]
[1755875617221,0.76544,116670.0,116660.0,0.56568237]
[1755875618313,0.81878,116670.0,116660.0,0.56568237]
[1755875618624,0.76544,116670.0,116660.0,0.56568237]
[1755875618923,1.4253222,116670.0,116660.0,0.56568237]
[1755875619119,1.3396083,116670.0,116660.0,0.56568237]
[1755875619322,1.4253222,116670.0,116660.0,0.09026237]
[1755875619514,1.6761222,116670.0,116660.0,0.011]
[1755875619712,1.6761222,116670.0,116630.0,0.07490912]
[1755875619713,0.538206,116640.0,116630.0,0.07490912]
[1755875620014,0.37676,116630.0,116620.0,0.17965554]
[1755875620222,0.8977883,116630.0,116620.0,0.10491583]
[1755875620523,2.0593083,116630.0,116620.0,0.46769363]
[1755875620713,2.0593083,116630.0,116620.0,0.54525363]
[1755875621017,2.0533083,116630.0,116620.0,0.54525363]
[1755875621220,1.1417883,116630.0,116620.0,0.54525363]
[1755875621521,1.1417883,116630.0,116620.0,0.46769363]
[1755875621708,0.37096,116630.0,116620.0,0.46769363]
[1755875621911,0.28167,116630.0,116620.0,0.63100433]
[1755875622112,0.0002,116630.0,116620.0,0.99180433]
[1755875622420,0.0002,116630.0,116620.0,1.76263263]
[1755875622721,0.0002,116630.0,116620.0,2.15316433]
[1755875623114,0.33618179,116640.0,116630.0,0.5649629]
[1755875623310,0.38952179,116640.0,116630.0,0.84002]
[1755875623514,0.75032179,116640.0,116630.0,0.47922]
[1755875623714,1.27115009,116640.0,116630.0,0.47542]
[1755875623920,0.50750179,116640.0,116630.0,0.5611629]
[1755875624418,1.28348009,116640.0,116630.0,0.11999]
[1755875624623,1.28348009,116640.0,116620.0,0.35181363]
[1755875624823,0.26457,116630.0,116620.0,0.53992363]
[1755875625321,0.8999183,116630.0,116620.0,0.53992363]
[1755875625618,0.8999183,116630.0,116620.0,0.06983363]
[1755875625819,1.5462683,116630.0,116610.0,0.67218243]
[1755875626123,0.8999183,116630.0,116620.0,0.47009]
[1755875626416,0.9001183,116630.0,116620.0,0.47009]
[1755875627018,0.9001183,116630.0,116620.0,0.47309]
[1755875627228,0.37929,116630.0,116620.0,0.47309]
[1755875627417,0.38229,116630.0,116620.0,0.47309]
[1755875627618,0.38229,116630.0,116620.0,0.47009]
[1755875627813,0.38229,116630.0,116620.0,0.47309]
[1755875628018,0.20101,116630.0,116620.0,0.72309]
[1755875628221,0.37934,116630.0,116620.0,0.72309]
[1755875628416,0.0032,116630.0,116620.0,2.0802406]
[1755875628723,0.01876179,116640.0,116630.0,0.5492333]
[1755875628927,0.86617009,116640.0,116630.0,0.46349]
[1755875629118,0.91893009,116640.0,116630.0,0.46349]
[1755875629424,1.27973009,116640.0,116630.0,0.46349]
[1755875630122,1.28173009,116640.0,116630.0,0.46549]
[1755875630316,0.76090179,116640.0,116630.0,0.46549]
[1755875630516,1.28173009,116640.0,116630.0,0.46549]
[1755875630926,1.53173009,116640.0,116630.0,0.46549]
[1755875631227,2.44189009,116640.0,116630.0,0.39423]
[1755875631625,0.76090179,116640.0,116630.0,0.46549]
[1755875631823,0.002,116640.0,116630.0,2.5929016]
[1755875632021,0.74014,116670.0,116660.0,0.46349]
[1755875632619,1.2609683,116670.0,116660.0,0.46349]
[1755875633122,0.38154,116660.0,116650.0,0.23024]
[1755875633315,0.38154,116660.0,116650.0,0.46349]
[1755875633316,1.2631683,116660.0,116650.0,0.46349]
[1755875633514,0.38154,116660.0,116650.0,0.5492186]
[1755875633730,0.63182,116670.0,116660.0,0.5492112]
[1755875633925,0.74634,116670.0,116660.0,0.46349]
[1755875634127,1.6028822,116670.0,116660.0,0.11055]
[1755875634320,0.38254,116660.0,116650.0,0.46349]
[1755875634627,0.74334,116660.0,116650.0,0.46349]
[1755875635220,1.2641683,116660.0,116650.0,0.46349]
[1755875635415,0.74354,116660.0,116650.0,0.46349]
[1755875635630,1.2643683,116660.0,116650.0,0.46349]
[1755875635823,0.74354,116660.0,116650.0,0.46349]
[1755875636026,0.68978,116660.0,116650.0,0.71349]
[1755875636219,0.0002,116660.0,116650.0,1.1600171]
[1755875636425,0.004,116670.0,116660.0,0.08572]
[1755875636629,0.001,116670.0,116660.0,2.2543583]
[1755875636821,0.001,116670.0,116660.0,1.62273]
[1755875637023,0.57526,116680.0,116670.0,0.35294]
[1755875637226,0.57526,116680.0,116670.0,0.46349]
[1755875637537,1.3490736,116680.0,116670.0,0.46349]
[1755875637829,1.2633683,116680.0,116670.0,0.46349]
[1755875638732,0.9025683,116680.0,116670.0,0.46349]
[1755875638933,0.38174,116680.0,116670.0,0.82429]
[1755875639128,1.25378361,116690.0,116680.0,0.46349]
[1755875639429,1.25378361,116690.0,116670.0,0.47541678]
[1755875639430,0.38174,116680.0,116670.0,0.47541678]
[1755875639631,0.8292449,116680.0,116670.0,0.47541678]
[1755875639931,1.6002732,116680.0,116670.0,0.01192678]
[1755875640229,1.6002732,116680.0,116660.0,0.07126]
[1755875640230,0.26722,116670.0,116660.0,0.46349]
[1755875640534,0.0002,116670.0,116660.0,0.47538301]
[1755875640729,0.0002,116670.0,116660.0,0.56110271]
[1755875641330,0.0002,116670.0,116660.0,0.81110271]
[1755875641943,0.0032,116670.0,116660.0,0.72538301]
[1755875643034,0.09209,116670.0,116660.0,0.72538301]
[1755875643232,0.09309,116670.0,116660.0,0.72538301]
[1755875643537,0.09309,116670.0,116660.0,0.47538301]
[1755875643538,0.9067683,116670.0,116660.0,0.47538301]
[1755875644838,0.0042,116670.0,116660.0,0.72538301]
[1755875645531,0.0042,116670.0,116660.0,0.56339301]
[1755875645532,0.38594,116670.0,116660.0,0.56339301]
[1755875645729,0.9067683,116670.0,116660.0,0.72538301]
[1755875646342,0.38594,116670.0,116660.0,0.72538301]
[1755875646538,0.0042,116670.0,116660.0,0.72538301]
[1755875646932,0.33318,116670.0,116660.0,0.72538301]
[1755875647432,0.38594,116670.0,116660.0,0.72538301]
[1755875648531,0.9067683,116670.0,116660.0,0.72538301]
[1755875648834,0.0042,116670.0,116660.0,1.24621131]
[1755875649229,0.0042,116670.0,116660.0,1.69273061]
[1755875649636,0.0042,116670.0,116660.0,1.17190231]
[1755875650032,0.01923741,116690.0,116680.0,0.11055]
[1755875650235,0.01523741,116690.0,116680.0,1.4308228]
[1755875650436,0.03552918,116690.0,116680.0,0.9099945]
[1755875650737,0.3608,116710.0,116700.0,0.46349]
[1755875651036,0.0008,116740.0,116730.0,0.3582078]
[1755875651037,0.12557,116740.0,116730.0,0.3582078]
[1755875651242,0.12557,116740.0,116730.0,1.64807]
[1755875651940,0.12557,116740.0,116730.0,1.61128]
[1755875652441,0.12557,116740.0,116730.0,1.71659051]
[1755875652637,0.12757,116740.0,116730.0,1.71659051]
[1755875652839,0.12757,116740.0,116730.0,1.72886953]
[1755875654638,0.12757,116740.0,116730.0,1.69207953]
[1755875654839,0.48266,116740.0,116730.0,1.58063953]
[1755875655044,0.12777,116740.0,116730.0,1.94143953]
[1755875655345,0.48266,116740.0,116730.0,1.94143953]
[1755875655547,0.56832,116740.0,116730.0,1.94143953]
[1755875655841,1.7007483,116740.0,116730.0,0.19134953]
[1755875656039,1.2534883,116740.0,116730.0,0.42589953]
[1755875656237,1.2534883,116740.0,116730.0,0.78669953]
[1755875656440,0.12777,116740.0,116730.0,0.78669953]
[1755875656746,0.0022,116740.0,116730.0,1.67998513]
[1755875656949,0.0022,116740.0,116730.0,1.59431783]
[1755875657133,0.12413,116740.0,116730.0,0.82348953]
[1755875657735,0.12413,116740.0,116730.0,1.07348953]
[1755875658141,0.0022,116740.0,116730.0,1.15915683]
[1755875658645,0.12413,116740.0,116730.0,1.07348953]
[1755875658839,0.9222983,116740.0,116730.0,1.03669953]
[1755875659043,0.9222983,116740.0,116730.0,1.94177953]
[1755875659240,0.12313,116740.0,116730.0,2.02744683]
[1755875659444,0.12313,116740.0,116730.0,1.97808953]
[1755875659847,0.12313,116740.0,116730.0,1.94177953]
[1755875660143,0.12313,116740.0,116730.0,1.97808953]
[1755875660341,0.12317,116740.0,116730.0,1.97808953]
[1755875660740,0.12317,116740.0,116730.0,2.06375683]
[1755875661147,0.00124,116740.0,116730.0,2.06375683]
[1755875661346,0.00124,116740.0,116730.0,2.58458513]
[1755875662638,0.00124,116740.0,116730.0,2.06375683]
[1755875662850,0.12317,116740.0,116730.0,2.06375683]
[1755875663046,0.00124,116740.0,116730.0,2.06375683]
[1755875663246,0.00124,116740.0,116730.0,2.58458513]
[1755875663545,0.12193,116750.0,116740.0,0.19572]
[1755875663746,0.12197,116760.0,116750.0,0.38046]
[1755875663952,0.12197,116760.0,116750.0,1.64546]
[1755875664838,0.12197,116760.0,116750.0,1.9811126]
[1755875665449,0.12197,116760.0,116750.0,1.89546]
[1755875666347,0.12497,116760.0,116750.0,1.89546]
[1755875666860,0.30537,116760.0,116750.0,0.7924]
[1755875667148,0.30537,116760.0,116750.0,0.95569]
[1755875667149,0.47692,116760.0,116750.0,0.95569]
[1755875667951,0.47692,116760.0,116750.0,1.85905]
[1755875668143,0.47492,116760.0,116750.0,1.69576]
[1755875668348,0.47492,116760.0,116750.0,1.85905]
[1755875668549,0.8105652,116760.0,116750.0,1.60905]
[1755875669054,1.3313935,116760.0,116750.0,0.70569]
[1755875669649,0.5593326,116750.0,116740.0,0.3608]
[1755875669848,1.3303609,116750.0,116740.0,0.63415]
[1755875670053,1.0803609,116750.0,116740.0,0.34489]
[1755875670242,1.0811609,116750.0,116730.0,0.44159953]
[1755875670441,0.5593398,116740.0,116730.0,0.71494953]
[1755875670646,0.5595398,116740.0,116730.0,0.55165953]
[1755875670847,1.0803681,116740.0,116730.0,0.42932051]
[1755875671055,1.3303681,116740.0,116730.0,0.42932051]
[1755875671252,1.3311681,116740.0,116730.0,0.42932051]
[1755875671456,2.2340081,116740.0,116730.0,0.42932051]
[1755875671656,2.1475483,116740.0,116730.0,0.77421051]
[1755875671851,1.62672,116740.0,116730.0,0.77621051]
[1755875672058,1.7123798,116740.0,116730.0,0.77621051]
[1755875672357,1.7123798,116740.0,116730.0,0.70467051]
[1755875672545,1.7123798,116740.0,116730.0,0.43132051]
[1755875672746,0.0002,116740.0,116730.0,2.32095601]
[1755875672955,0.14082383,116760.0,116750.0,0.38046]
[1755875673256,0.01897703,116770.0,116750.0,2.3415408]
[1755875673453,0.01897703,116770.0,116760.0,0.74126]
[1755875673645,0.14090703,116770.0,116760.0,0.74126]
[1755875673848,0.24689703,116770.0,116760.0,0.95569]
[1755875674044,0.36769,116760.0,116750.0,0.5424]
[1755875674245,0.36769,116760.0,116750.0,1.64378]
[1755875674246,0.12193,116760.0,116750.0,1.64378]
[1755875674660,0.12193,116760.0,116750.0,0.70569]
[1755875675360,0.29428,116760.0,116750.0,0.70569]
[1755875675550,1.0811535,116760.0,116750.0,0.34489]
[1755875675751,1.6919535,116760.0,116750.0,0.34489]
[1755875676360,0.8103252,116760.0,116750.0,0.34489]
[1755875676662,0.5605252,116760.0,116750.0,0.34489]
[1755875677953,0.8105252,116760.0,116750.0,0.1816]
[1755875678255,1.3313535,116760.0,116750.0,0.34489]
[1755875678959,1.3313535,116760.0,116750.0,0.27335]
[1755875679158,1.3313935,116760.0,116750.0,0.27335]
[1755875679354,0.8105652,116760.0,116750.0,0.27335]
[1755875679560,0.8105652,116760.0,116750.0,0.34489]
[1755875680058,1.3313935,116760.0,116750.0,0.34489]
[1755875680664,0.8105652,116760.0,116750.0,0.34489]
[1755875682158,1.3313935,116760.0,116750.0,0.11006]
[1755875682469,1.3313935,116760.0,116750.0,0.27335]
[1755875682659,0.8105652,116760.0,116750.0,0.34489]
[1755875682853,0.8105652,116760.0,116750.0,0.70569]
[1755875683163,0.5648052,116760.0,116750.0,0.70569]
[1755875683360,0.4588152,116760.0,116750.0,0.70569]
[1755875683568,0.12317,116760.0,116750.0,0.99126]
[1755875683967,0.4880252,116760.0,116750.0,0.95569]
[1755875684155,0.5624352,116760.0,116750.0,0.95569]
[1755875684359,0.8124352,116760.0,116750.0,0.5424]
[1755875684560,0.8124352,116760.0,116750.0,0.70843]
[1755875684765,1.3332635,116760.0,116750.0,0.70843]
[1755875687666,1.3332635,116760.0,116730.0,0.67011652]
[1755875687667,0.0856599,116740.0,116730.0,0.67011652]
[1755875687871,1.0809482,116740.0,116730.0,0.06852051]
[1755875688168,0.5599272,116730.0,116720.0,0.23712914]